{"text_format":"3","workbook":"xlsx","n_sheets":1,"sheets":["Indkøbsliste"],"not_rendered":{"images":1,"defined_names":3},"read":"whole","date_system":"1900"}

{"sheet":"Indkøbsliste","index":0,"n_rows":31,"n_cols":8,"rows_kept":31}
[null,"Indkøbsliste"]
[null,"DATO"]
[null,"Færdig?","Emne","Kategori","Mængde","Pris","Varetotal","Mærke/kommentarer"]
[null,null,"Appelsiner","Frugt og grønt",null,null,{"$f":"IFERROR(SUM(Indkøbsliste[[#This Row],[Mængde]]*Indkøbsliste[[#This Row],[Pris]]), \"\")","v":{"v":0,"d":"kr. 0.00"}}]
[null,null,"Æbler","Frugt og grønt",null,null,{"$f":"IFERROR(SUM(Indkøbsliste[[#This Row],[Mængde]]*Indkøbsliste[[#This Row],[Pris]]), \"\")","v":{"v":0,"d":"kr. 0.00"}}]
[null,null,"Bananer","Frugt og grønt",null,null,{"$f":"IFERROR(SUM(Indkøbsliste[[#This Row],[Mængde]]*Indkøbsliste[[#This Row],[Pris]]), \"\")","v":{"v":0,"d":"kr. 0.00"}}]
[null,null,"Salat","Frugt og grønt",null,null,{"$f":"IFERROR(SUM(Indkøbsliste[[#This Row],[Mængde]]*Indkøbsliste[[#This Row],[Pris]]), \"\")","v":{"v":0,"d":"kr. 0.00"}}]
[null,null,"Tomater","Frugt og grønt",null,null,{"$f":"IFERROR(SUM(Indkøbsliste[[#This Row],[Mængde]]*Indkøbsliste[[#This Row],[Pris]]), \"\")","v":{"v":0,"d":"kr. 0.00"}},"  "]
[null,null,"Mælk ","Mejeri",null,null,{"$f":"IFERROR(SUM(Indkøbsliste[[#This Row],[Mængde]]*Indkøbsliste[[#This Row],[Pris]]), \"\")","v":{"v":0,"d":"kr. 0.00"}}]
[null,null,"Ost","Mejeri",null,null,{"$f":"IFERROR(SUM(Indkøbsliste[[#This Row],[Mængde]]*Indkøbsliste[[#This Row],[Pris]]), \"\")","v":{"v":0,"d":"kr. 0.00"}}]
[null,null,"Æg","Mejeri",null,null,{"$f":"IFERROR(SUM(Indkøbsliste[[#This Row],[Mængde]]*Indkøbsliste[[#This Row],[Pris]]), \"\")","v":{"v":0,"d":"kr. 0.00"}}]
[null,null,"Hytteost","Mejeri",null,null,{"$f":"IFERROR(SUM(Indkøbsliste[[#This Row],[Mængde]]*Indkøbsliste[[#This Row],[Pris]]), \"\")","v":{"v":0,"d":"kr. 0.00"}}]
[null,null,"Oksekød","Kød",null,null,{"$f":"IFERROR(SUM(Indkøbsliste[[#This Row],[Mængde]]*Indkøbsliste[[#This Row],[Pris]]), \"\")","v":{"v":0,"d":"kr. 0.00"}}]
[null,null,"Fjerkræ","Kød",null,null,{"$f":"IFERROR(SUM(Indkøbsliste[[#This Row],[Mængde]]*Indkøbsliste[[#This Row],[Pris]]), \"\")","v":{"v":0,"d":"kr. 0.00"}}]
[null,null,"Skinke","Kød",null,null,{"$f":"IFERROR(SUM(Indkøbsliste[[#This Row],[Mængde]]*Indkøbsliste[[#This Row],[Pris]]), \"\")","v":{"v":0,"d":"kr. 0.00"}}]
[null,null,"Juice","Drikkevarer",null,null,{"$f":"IFERROR(SUM(Indkøbsliste[[#This Row],[Mængde]]*Indkøbsliste[[#This Row],[Pris]]), \"\")","v":{"v":0,"d":"kr. 0.00"}}]
[null,null,"Kaffe","Drikkevarer",null,null,{"$f":"IFERROR(SUM(Indkøbsliste[[#This Row],[Mængde]]*Indkøbsliste[[#This Row],[Pris]]), \"\")","v":{"v":0,"d":"kr. 0.00"}}]
[null,null,"Te","Drikkevarer",null,null,{"$f":"IFERROR(SUM(Indkøbsliste[[#This Row],[Mængde]]*Indkøbsliste[[#This Row],[Pris]]), \"\")","v":{"v":0,"d":"kr. 0.00"}}]
[null,null,"Vand","Drikkevarer",null,null,{"$f":"IFERROR(SUM(Indkøbsliste[[#This Row],[Mængde]]*Indkøbsliste[[#This Row],[Pris]]), \"\")","v":{"v":0,"d":"kr. 0.00"}}]
[null,null,"Nudler","Pasta",null,null,{"$f":"IFERROR(SUM(Indkøbsliste[[#This Row],[Mængde]]*Indkøbsliste[[#This Row],[Pris]]), \"\")","v":{"v":0,"d":"kr. 0.00"}}]
[null,null,"Ris","Pasta",null,null,{"$f":"IFERROR(SUM(Indkøbsliste[[#This Row],[Mængde]]*Indkøbsliste[[#This Row],[Pris]]), \"\")","v":{"v":0,"d":"kr. 0.00"}}]
[null,null,"Konserves","Suppe",null,null,{"$f":"IFERROR(SUM(Indkøbsliste[[#This Row],[Mængde]]*Indkøbsliste[[#This Row],[Pris]]), \"\")","v":{"v":0,"d":"kr. 0.00"}}]
[null,null,"Tørblanding","Suppe",null,null,{"$f":"IFERROR(SUM(Indkøbsliste[[#This Row],[Mængde]]*Indkøbsliste[[#This Row],[Pris]]), \"\")","v":{"v":0,"d":"kr. 0.00"}}]
[null,null,"Brød","Bageri",null,null,{"$f":"IFERROR(SUM(Indkøbsliste[[#This Row],[Mængde]]*Indkøbsliste[[#This Row],[Pris]]), \"\")","v":{"v":0,"d":"kr. 0.00"}}]
[null,null,"Franske kartofler","Snacks",null,null,{"$f":"IFERROR(SUM(Indkøbsliste[[#This Row],[Mængde]]*Indkøbsliste[[#This Row],[Pris]]), \"\")","v":{"v":0,"d":"kr. 0.00"}}]
[null,null,"Saltstænger","Snacks",null,null,{"$f":"IFERROR(SUM(Indkøbsliste[[#This Row],[Mængde]]*Indkøbsliste[[#This Row],[Pris]]), \"\")","v":{"v":0,"d":"kr. 0.00"}}]
[null,null,"Is","Snacks",null,null,{"$f":"IFERROR(SUM(Indkøbsliste[[#This Row],[Mængde]]*Indkøbsliste[[#This Row],[Pris]]), \"\")","v":{"v":0,"d":"kr. 0.00"}}]
[null,null,"Småkager","Snacks",null,null,{"$f":"IFERROR(SUM(Indkøbsliste[[#This Row],[Mængde]]*Indkøbsliste[[#This Row],[Pris]]), \"\")","v":{"v":0,"d":"kr. 0.00"}}]
[null,null,"Papirtallerkener","Forsyninger",null,null,{"$f":"IFERROR(SUM(Indkøbsliste[[#This Row],[Mængde]]*Indkøbsliste[[#This Row],[Pris]]), \"\")","v":{"v":0,"d":"kr. 0.00"}}]
[null,null,"Servietter","Forsyninger",null,null,{"$f":"IFERROR(SUM(Indkøbsliste[[#This Row],[Mængde]]*Indkøbsliste[[#This Row],[Pris]]), \"\")","v":{"v":0,"d":"kr. 0.00"}}]
[{"$nulls":6},{"$f":"SUBTOTAL(109,Indkøbsliste[Varetotal])","v":{"v":0,"d":"kr. 0.00"}}]